Cogmind - Beta 10.1 @@@ ROGUE MODE // 2020.09.23 @ 12:16:52 Player: Alvin Result: Self-destructed Performance ------------- Evolutions (0) 0 Regions Visited (4) 800 Robots Destroyed (9) 45 Value Destroyed (188) 188 Prototype IDs (0) 0 Alien Tech Used (0) 0 Bonus (0) 0 TOTAL SCORE: 1033 Bonus ------- None Cogmind --------- Core Integrity 126/250 Matter 300/300 Energy 100/100 System Corruption 0% Temperature Cool (19) Movement Core (350) Ox6 Location -9/Mines Parts ------- > --- POWER (1) -------- (None) > --- PROPULSION (2) --- (None) > --- UTILITY (2) ------ Large Storage Unit Seismic Analyzer > --- WEAPON (2) ------- Ripper > --- INVENTORY (10) --- Ion Engine Reinforced Deuterium Engine Aluminum Leg Aluminum Leg Light Armor Plating Peak State ------------ > --- POWER ------------ Light Ion Engine > --- PROPULSION ------- Aluminum Leg > --- UTILITY ---------- Large Storage Unit Seismic Analyzer > --- WEAPON ----------- Light Assault Rifle Ripper > --- INVENTORY -------- Ion Engine Reinforced Deuterium Engine Aluminum Leg Aluminum Leg Light Armor Plating [Rating: 9] Favorites ----------- Power Ion Engine Engine Ion Engine Propulsion Aluminum Leg Leg Aluminum Leg Utility Seismic Analyzer Storage Small Storage Unit Processor Seismic Analyzer Weapon EM Pulse Gun Energy Gun EM Pulse Gun Ballistic Gun Light Assault Rifle Slashing Weapon Ripper Build | -11 -10 -10 -10 -9 ------- Run | Scr Mat Min Exi Min Slots Evolved . | . . . . . Power . | . . . . . Propulsion . | . . . . . Utility . | . . . . . Weapon . | . . . . . Parts Attached 16 | 6 4 . 1 5 Power 2 | 1 . . . 1 Engine 2 | 1 . . . 1 Core . | . . . . . Reactor . | . . . . . Propulsion 5 | 2 3 . . . Treads . | . . . . . Leg 5 | 2 3 . . . Wheel . | . . . . . Hover . | . . . . . Flight . | . . . . . Utility 3 | 1 1 . 1 . Device . | . . . . . Storage 2 | 1 . . 1 . Processor 1 | . 1 . . . Hackware . | . . . . . Protection . | . . . . . Artifact . | . . . . . Weapon 6 | 2 . . . 4 Energy Gun 3 | 2 . . . 1 Energy Cannon . | . . . . . Ballistic Gun 2 | . . . . 2 Ballistic Cannon . | . . . . . Launcher . | . . . . . Special Weapon . | . . . . . Impact Weapon . | . . . . . Slashing Weapon 1 | . . . . 1 Piercing Weapon . | . . . . . Special Melee Weapon . | . . . . . Unidentified Prototypes . | . . . . . Parts Lost 9 | . . . . 9 Power 2 | . . . . 2 Propulsion 2 | . . . . 2 Utility . | . . . . . Weapon 5 | . . . . 5 Highest Loss Streak 6 | . . . . 6 Average Slot Usage (%) 98 | . 93 100 100 99 Engine 14 | . 14 14 14 14 Leg 27 | . 28 28 28 27 Storage 14 | . 14 14 14 14 Processor 12 | . 8 14 14 14 Energy Gun 26 | . 28 28 28 14 Ballistic Gun 1 | . . . . 12 Naked Turns . | . . . . . Heaviest Build 24 | 12 12 12 24 24 Greatest Support 20 | 20 20 20 20 20 Greatest Overweight (x) 1 | 1 . . 1 1 Average Overweight (x) . | . . . . . Largest Inventory Capacity 10 | 6 6 6 10 10 Average Capacity 6 | 5 6 6 6 10 Most Carried 8 | 4 6 6 6 8 Average Carried 5 | 2 5 5 6 6 Final Capacity 10 | 6 6 6 10 10 Final Carried 6 | 4 6 6 6 5 Class Distribution -------------------- 100% | Mutant Dominant Class ---------------- Mutant | -10/Materials Mutant | -10/Mines Mutant | -10/Exiles Mutant | -9/Mines Resources | -11 -10 -10 -10 -9 ----------- Run | Scr Mat Min Exi Min Matter Collected 345 | 212 68 20 . 45 Remotely . | . . . . . Salvage Created 259 | . 85 . . 174 Parts 22 | . 6 . . 16 Haulers Intercepted . | . . . . . Recyclers Shooed . | . . . . . Parts Field Recycled . | . . . . . Retrieved Matter . | . . . . . Parts Self-Destructed . | . . . . . Prevented . | . . . . . Kills | -11 -10 -10 -10 -9 ------- Run | Scr Mat Min Exi Min Combat Hostiles Destroyed 9 | . 3 . . 6 Guns 8 | . 3 . . 5 AOE 1 | . . . . 1 Classes Destroyed 3 | . 2 . . 1 Swarmer 5 | . 2 . . 3 Grunt 3 | . 1 . . 2 Brawler 1 | . . . . 1 Best Kill Streak 5 | . 2 . . 5 Combat Bots Only 5 | . 2 . . 5 Max Kills in Single Turn 2 | . 2 . . 1 Gunslinging 1 | . 1 . . . Exploded 1 | . . . . 1 Melee . | . . . . . Uniques/NPCs Destroyed . | . . . . . Combat | -11 -10 -10 -10 -9 -------- Run | Scr Mat Min Exi Min Damage Taken 760 | . 114 . . 646 Core 124 | . 16 . . 108 Absorbed by Shields . | . . . . . Core Remaining (%) 100 | 100 . . . . Volleys Fired 30 | . 6 . . 24 Largest 2 | . 2 . . 2 Hottest 80 | . 80 . . 80 Shots Fired 57 | . 12 . . 45 Gun 57 | . 12 . . 45 Cannon . | . . . . . Launcher . | . . . . . Special . | . . . . . Kinetic 20 | . . . . 20 Thermal 19 | . 6 . . 13 Explosive . | . . . . . Electromagnetic 18 | . 6 . . 12 Robot Hit Streak 6 | . 6 . . 5 Robot Miss Streak 4 | . 4 . . 4 Penetration Max . | . . . . . Secondary Targets 2 | . 1 . . 1 Max Gunslinging Chain 1 | . 1 . . 1 Shots Hit Robots 30 | . 7 . . 23 Core Hits 14 | . 4 . . 10 Critical Hits . | . . . . . Critical Kills . | . . . . . Critical Parts Destroyed . | . . . . . Melee Attacks . | . . . . . Impact . | . . . . . Slashing . | . . . . . Piercing . | . . . . . Sneak Attacks . | . . . . . Combat Hostiles . | . . . . . Follow-up Attacks . | . . . . . Damage Inflicted 370 | . 70 . . 300 Guns 304 | . 70 . . 234 Cannons . | . . . . . Explosions 66 | . . . . 66 Melee . | . . . . . Ramming . | . . . . . Kinetic 74 | . . . . 74 Thermal 177 | . 34 . . 143 Explosive . | . . . . . Electromagnetic 119 | . 36 . . 83 Impact . | . . . . . Slashing . | . . . . . Piercing . | . . . . . Highest Corruption . | . . . . . Average Corruption . | . . . . . Corruption Purged . | . . . . . Overload Shots . | . . . . . Overflow Damage . | . . . . . Projectiles . | . . . . . Explosions . | . . . . . Melee . | . . . . . Knockbacks . | . . . . . Impact . | . . . . . Kinetic . | . . . . . Secondary . | . . . . . Self-Inflicted Damage . | . . . . . Shots . | . . . . . Rammed . | . . . . . Targets Rammed . | . . . . . Kicked . | . . . . . Crushed . | . . . . . Highest Temperature 90 | . 54 . . 90 Average Temperature 39 | . 26 . . 43 Received Heat Transfer 168 | . 12 . . 156 Siege Activations . | . . . . . Robots Corrupted . | . . . . . Combat Hostiles . | . . . . . Parts Fried . | . . . . . Impact Corruptions . | . . . . . Robots Melted . | . . . . . Combat Hostiles . | . . . . . Parts Melted . | . . . . . Heat Transferred 350 | . 75 . . 275 Parts Sabotaged . | . . . . . Parts Stolen . | . . . . . Parts Stripped . | . . . . . Power Chain Reactions 1 | . . . . 1 Missiles Intercepted . | . . . . . Alert | -11 -10 -10 -10 -9 ------- Run | Scr Mat Min Exi Min Peak Influence 110 | . 95 36 . 110 Initial 36 | . . 36 . . Average 49 | . 54 36 . 84 Maximum Alert Level . | . . . . . Low Security (%) 100 | 100 100 100 . 100 Level 1 . | . . . . . Level 2 . | . . . . . Level 3 . | . . . . . Level 4 . | . . . . . Level 5 . | . . . . . High Security . | . . . . . Max Security . | . . . . . Squads Dispatched 1 | . 1 . . . Investigation 1 | . 1 . . . Extermination . | . . . . . Reinforcement . | . . . . . Assault . | . . . . . Garrison . | . . . . . Intercept . | . . . . . Construction Impeded . | . . . . . Haulers Reinforced . | . . . . . Stealth | -11 -10 -10 -10 -9 --------- Run | Scr Mat Min Exi Min Distress Signals . | . . . . . Communications Jammed . | . . . . . Distress Signals . | . . . . . Times Spotted 18 | . 5 . . 13 Peak Tracking Total 5 | . 3 . . 5 Tactical Retreats 1 | . . . . 1 Traps | -11 -10 -10 -10 -9 ------- Run | Scr Mat Min Exi Min Traps Triggered 1 | . 1 . . . Indirectly . | . . . . . Trap Hack Attempts . | . . . . . Triggered . | . . . . . Disarmed . | . . . . . Reprogrammed . | . . . . . Reused . | . . . . . Traps Extracted . | . . . . . Installed . | . . . . . Triggered . | . . . . . Machines | -11 -10 -10 -10 -9 ---------- Run | Scr Mat Min Exi Min Machines Disabled . | . . . . . Max in Single Turn . | . . . . . Machines Sabotaged . | . . . . . Garrisons Compromised . | . . . . . Overloaded Fab Kills . | . . . . . Fab Network Shutdowns . | . . . . . Hacking | -11 -10 -10 -10 -9 --------- Run | Scr Mat Min Exi Min Machines Accessed 3 | . . . 3 . Terminals . | . . . . . Fabricators . | . . . . . Repair Stations . | . . . . . Recycling Units . | . . . . . Scanalyzers . | . . . . . Garrison Access . | . . . . . Total Hacks 25 | . . . 25 . Successful 25 | . . . 25 . Failed . | . . . . . Catastrophic . | . . . . . Database Lockouts . | . . . . . Manual . | . . . . . Terminals . | . . . . . Fabricators . | . . . . . Repair Stations . | . . . . . Recycling Units . | . . . . . Scanalyzers . | . . . . . Garrison Access . | . . . . . Terminal Hacks 25 | . . . 25 . Record 25 | . . . 25 . Fabricator Hacks . | . . . . . Repair Station Hacks . | . . . . . Recycling Unit Hacks . | . . . . . Scanalyzer . | . . . . . Garrison Access Hacks . | . . . . . Unauthorized Hacks . | . . . . . Terminals . | . . . . . Fabricators . | . . . . . Repair Stations . | . . . . . Recycling Units . | . . . . . Scanalyzers . | . . . . . Garrison Access . | . . . . . Data Cores Recovered . | . . . . . Used . | . . . . . Hacking Detections . | . . . . . Full Trace Events . | . . . . . Feedback Events . | . . . . . Feedback Blocked . | . . . . . Robot Schematics Acquired . | . . . . . Robots Built . | . . . . . Matter . | . . . . . Time . | . . . . . Total Robot Build Rating . | . . . . . Part Schematics Acquired . | . . . . . Parts Built . | . . . . . Matter . | . . . . . Time . | . . . . . Total Part Build Rating . | . . . . . Parts Repaired . | . . . . . Time . | . . . . . Parts Recycled . | . . . . . Recycled Matter . | . . . . . Retrieved Matter . | . . . . . Retrieved Components . | . . . . . Parts Scanalyzed . | . . . . . Part Schematics Acquired . | . . . . . Parts Damaged . | . . . . . Bothacking | -11 -10 -10 -10 -9 ------------ Run | Scr Mat Min Exi Min Used RIF Installer . | . . . . . Robots Hacked . | . . . . . Non-combat . | . . . . . Combat . | . . . . . Robot Hacks Applied . | . . . . . Relay Couplers Released . | . . . . . Robots Rewired . | . . . . . Allies Hacked . | . . . . . Hacks Repelled . | . . . . . Allies | -11 -10 -10 -10 -9 -------- Run | Scr Mat Min Exi Min Total Allies . | . . . . . Largest Group . | . . . . . Highest-Rated Group . | . . . . . Highest-Rated Ally . | . . . . . Total Orders . | . . . . . Ally Attacks . | . . . . . Total Damage . | . . . . . Kills . | . . . . . Allies Corrupted . | . . . . . Allies Melted . | . . . . . Intel | -11 -10 -10 -10 -9 ------- Run | Scr Mat Min Exi Min Robot Analysis Total . | . . . . . Derelict Logs Recovered 2 | . . 2 . . Drone Launches . | . . . . . Drone Recoveries . | . . . . . Exploration | -11 -10 -10 -10 -9 ------------- Run | Scr Mat Min Exi Min Turns Passed 1122 | 79 222 167 504 150 Spaces Moved 808 | 55 160 138 407 48 Core 5 | 5 . . . . Treads . | . . . . . Legs 803 | 50 160 138 407 48 Wheels . | . . . . . Hover . | . . . . . Flight . | . . . . . Fastest Speed 50 | 50 120 120 120 120 Average Speed 123 | 116 120 120 123 149 Slowest Speed 150 | 120 120 120 150 150 Overloaded Moves . | . . . . . Propulsion Burnouts . | . . . . . Robots Hopped . | . . . . . Cave-ins Triggered . | . . . . . Exploration Rate (%) 35 | 5 31 40 87 12 Regions Visited 4 Branch Regions 3 Pre-discovered Areas 2 | . . 2 . . Known Exits Taken . | . . . . . Unknown Exits Taken 4 | 1 1 1 1 . Scrap Searched 1 | . . 1 . . Spaces Dug . | . . . . . Terrain Destroyed 8 | . . . . 8 Melee . | . . . . . Projectile . | . . . . . AOE 8 | . . . . 8 Terrain Rammed . | . . . . . Walls Destroyed . | . . . . . Machines Disabled . | . . . . . Actions | -11 -10 -10 -10 -9 --------- Run | Scr Mat Min Exi Min Total 883 | 70 178 140 410 85 Wait 9 | . 4 1 . 4 Move 804 | 54 159 137 406 48 Hop . | . . . . . Pick Up 19 | 10 3 1 1 4 Fast Attach . | . . . . . Attach 12 | 6 1 . . 5 Detach . | . . . . . Swap 4 | . 3 . 1 . Drop 5 | . 2 1 2 . Fire 30 | . 6 . . 24 Melee . | . . . . . Ram . | . . . . . Kick . | . . . . . Crush . | . . . . . Escape Stasis . | . . . . . Rewire . | . . . . . Trap . | . . . . . Miscellaneous . | . . . . . Route ------- -11/Scrapyard -10/Materials (discovered 2 exits: [*Mat] / [*Min]) -10/Mines -10/Exiles -9/Mines History --------- Turn | Location | Event 11 | -11/Scrapyard | Discovered new exit (range 15) 80 | -11/Scrapyard | Entered Materials 234 | -10/Materials | Discovered new exit (range 13) 266 | -10/Materials | Discovered new exit (range 6) 302 | -10/Materials | Entered Mines 317 | -10/Mines | Build established: Mutant 341 | -10/Mines | A weapon hastily lodged in a ceiling crevice suddenly fell to the ground 393 | -10/Mines | Learned location of Storage (-8) 464 | -10/Mines | Deemed a non-threat by the Exiles lab entrance 464 | -10/Mines | Discovered new exit (range 5) 469 | -10/Mines | Entered Exiles 507 | -10/Exiles | Met 8R-AWN 530 | -10/Exiles | Met EX-HEX 566 | -10/Exiles | Met EX-BIN 695 | -10/Exiles | Met EX-DEC 748 | -10/Exiles | Visited The Gauntlet 951 | -10/Exiles | Discovered new exit (range 14) 973 | -10/Exiles | Entered Mines 998 | -9/Mines | Met a Derelict bent on vengeance 1123 | -9/Mines | Self-destructed Last Messages --------------- 01003_ Ion Engine destroyed. 01006_ G-34 Mercenary destroyed. 01018_ Acquired 20 matter. 01021_ R-06 Scavenger collects Lgt. Treads. 01027_ Acquired 8 matter. 01033_ Acquired Ion Engine. 01039_ K-01 Serf collects debris. 01040_ Acquired Lgt. Armor Plating. 01045_ Acquired Aluminum Leg. 01048_ Acquired Sml. Laser. 01052_ EM Pulse Gun destroyed. 01075_ Destroyed Lgt. Ion Engine. 01075_ S-10 Pest destroyed. 01078_ Acquired 17 matter. 01115_ Lgt. Assault Rifle destroyed. 01118_ Aluminum Leg destroyed. 01118_ Sml. Laser destroyed. 01122_ Lgt. Assault Rifle destroyed. 01122_ Lgt. Ion Engine destroyed. 01122_ Aluminum Leg destroyed. Map ----- +----------------------------------------------------+ | | | | | | | | | | | | | | | | | | | | | | | | | | | ?????????????????????????????????????????????????? | | ?????????????????????????????????????????????????? | | ?????????????????????????????????????????????????? | | ?????????????????????????????????????????????????? | | ?????????????????????????????????????????????????? | | ?????????????????????????????????????????????????? | | ?????????????????????????????????????????????????? | | ??????#######????????????????????????????????????? | | ????###"""""###??????????????????????????????????? | | ???## !%/ ##############?????????????????????? | | ???# [% % = = g #?????????????????????? | | ???# ! """ =%*########## l#?????????????????????? | | ??# ## =%=##????????#@ #?????????????????????? | | ??# ### [##?????????# l#?????????????????????? | | ??## ##?# ##?????????# #?????????????????????? | | ???###???# #?????????# g#?????????????????????? | | ?????????# #????????# #?????????????????????? | | ????????# #???????# #?????????????????????? | | ???????# #??????# #?????????????????????? | | ???????# #??????# g#?????????????????????? | | ???????## ?????# ?????????????????????? | | ????????# ????? ?????????????????????? | | ???????? % ##### ???? ?????????????????????? | | ??????? ##????? ??? ?????????????????????? | | ??????? #???????#?? ?????????????????????? | | ?????? #?????????? ????????????????????? | | ?????? ?????????? ] ????????????????????? | | ????? ?????????? ?????????????????????? | | ????? #??????????????????????????????????? | | ???????? ###???????????????????????????????????? | | ??????????#??????????????????????????????????????? | | ?????????????????????????????????????????????????? | | ?????????????????????????????????????????????????? | | ?????????????????????????????????????????????????? | | ?????????????????????????????????????????????????? | | ?????????????????????????????????????????????????? | | ?????????????????????????????????????????????????? | +----------------------------------------------------+ Best States ------------- Heat Dissipation 25 Energy Generation 10 Energy Capacity 250 Matter Stores 300 Matter Capacity 300 Sight Range 16 Terrain Scan Density 60 Evasion (%) 40 Item Schematics ----------------- None Robot Schematics ------------------ None Fabricated ------------ Nothing Alien Tech Used ----------------- None Achievements -------------- None Challenges ------------ None Game ------ Seed NetworkDataCore Manual? 0 Play Time 00:12:26 Cumulative 25.1 hours Start 2020.09.18 @ 17:08:48 End 2020.09.23 @ 12:16:52 Sessions 2 Manual Loads 0 Difficulty Rogue Special Mode None Game No. 33 Rogue 33 Adventurer 0 Explorer 0 Win Type - Total 0 Types 0/0/0/0/0/0/0/0/0 Lore% 15 Gallery% 31 Achievement% 18 Wizard Run 0 Options --------- ASCII 0 Keyboard 0 Movement Mouse Keybinds 0 Fullscreen 1 Font 12/Smallcaps Map View 83x54 Tactical HUD 1 Map Filters NONE Filters NONE Steam 1 RUN: d0f03743-73fe-4498-b438-c195438e57c5